fUSD/lending_fUSD_20241221
["ID","MTS","AMOUNT","RATE_DAILY","PERIOD"]
[346226762,1734784233458,-500.0,0.00019874,2]
[346226763,1734784233468,-503.42,0.00019874,2]
[346226764,1734784233478,-1797.6,0.00019874,2]
[346226765,1734784233488,-500.0,0.00019874,2]
[346226766,1734784233499,-500.0,0.00019874,2]
[346226767,1734784233509,-628.56,0.00019874,2]
[346226768,1734784233519,-953.13,0.00019874,2]
[346226769,1734784233529,-187.19765355,0.00019874,2]
[346226770,1734784233541,-500.0,0.00019874,2]
[346226771,1734784233552,-561.95,0.00019874,2]
[346226772,1734784233562,-500.0,0.00019874,2]
[346226773,1734784233573,-2223.0,0.00019874,2]
[346226774,1734784233583,-554.71,0.00019874,2]
[346226775,1734784233593,-814.91,0.00019874,2]
[346226776,1734784233603,-1142.21,0.00019874,2]
[346226777,1734784233612,-1208.36,0.00019874,2]
[346226778,1734784233623,-500.0,0.00019874,2]
[346226779,1734784233632,-500.0,0.00019874,2]
[346226780,1734784233642,-500.0,0.00019874,2]
[346226781,1734784233651,-500.0,0.00019874,2]
[346226782,1734784233661,-500.0,0.00019874,2]
[346226783,1734784233670,-500.0,0.00019874,2]
[346226784,1734784233680,-626.91,0.00019874,2]
[346226785,1734784233690,-506.6,0.00019874,2]
[346226786,1734784233701,-500.0,0.00019874,2]
[346226787,1734784233711,-500.0,0.00019874,2]
[346226788,1734784233721,-500.0,0.00019874,2]
[346226789,1734784233731,-500.0,0.00019874,2]
[346226790,1734784233740,-500.0,0.00019874,2]
[346226791,1734784233750,-500.0,0.00019875,2]
[346226792,1734784233759,-277.22914324,0.00019875,2]
[346226793,1734784233769,-500.0,0.00019875,2]
[346226794,1734784233778,-500.0,0.00019875,2]
[346226795,1734784233787,-500.0,0.00019875,2]
[346226796,1734784233796,-500.0,0.00019875,2]
[346226797,1734784233805,-500.0,0.00019875,2]
[346226798,1734784233815,-500.0,0.00019875,2]
[346226799,1734784233825,-150.0,0.00019875,2]
[346226800,1734784233834,-500.0,0.00019875,2]
[346226801,1734784233843,-500.0,0.00019875,2]
[346226802,1734784233852,-500.0,0.00019875,2]
[346226803,1734784233861,-500.0,0.00019875,2]
[346226804,1734784233871,-500.0,0.00019875,2]
[346226805,1734784233880,-500.0,0.00019875,2]
[346226806,1734784233889,-624.62334493,0.00019875,2]
[346226807,1734784233899,-500.0,0.00019875,2]
[346226808,1734784233908,-412.69033132,0.00019875,2]
[346226809,1734784233917,-500.0,0.00019875,2]
[346226810,1734784233927,-500.0,0.00019875,2]
[346226811,1734784233937,-500.0,0.00019875,2]
[346226812,1734784233948,-500.0,0.00019875,2]
[346226813,1734784233958,-500.0,0.00019875,2]
[346226814,1734784233967,-500.0,0.00019875,2]
[346226815,1734784233976,-500.0,0.00019875,2]
[346226816,1734784233985,-500.0,0.00019875,2]
[346226817,1734784233995,-500.0,0.00019875,2]
[346226818,1734784234004,-500.0,0.00019875,2]
[346226819,1734784234014,-507.00526456,0.00019875,2]
[346226820,1734784234023,-500.0,0.00019875,2]
[346226821,1734784234032,-500.0,0.00019875,2]
[346226822,1734784234042,-500.0,0.00019875,2]
[346226823,1734784234051,-500.0,0.00019875,2]
[346226824,1734784234061,-500.0,0.00019875,2]
[346226825,1734784234075,-500.0,0.00019875,2]
[346226826,1734784234086,-500.0,0.00019875,2]
[346226827,1734784234095,-500.0,0.00019875,2]
[346226828,1734784234105,-500.0,0.00019875,2]
[346226829,1734784234114,-500.0,0.00019875,2]
[346226830,1734784234124,-500.0,0.00019875,2]
[346226831,1734784234134,-500.0,0.00019875,2]
[346226832,1734784234143,-150.0,0.00019875,2]
[346226833,1734784234153,-500.0,0.00019875,2]
[346226834,1734784234163,-620.10810498,0.00019875,2]
[346226835,1734784234173,-500.0,0.00019875,2]
[346226836,1734784234182,-500.0,0.00019875,2]
[346226837,1734784234193,-500.0,0.00019875,2]
[346226838,1734784234207,-500.0,0.00019875,2]
[346226839,1734784234216,-268.46526169,0.00019875,2]
[346226840,1734784234226,-500.0,0.00019875,2]
[346226841,1734784234235,-500.0,0.00019875,2]
[346226842,1734784234456,-500.0,0.00019875,2]
[346226843,1734784234466,-500.0,0.00019875,2]
[346226844,1734784234476,-500.0,0.00019875,2]
[346226845,1734784234486,-299.69342596,0.00019875,2]
[346226846,1734784234495,-500.0,0.00019875,2]
[346226847,1734784234506,-588.20595286,0.00019875,2]
[346226848,1734784234515,-159.090281,0.00019875,2]
[346226849,1734784234525,-500.0,0.00019875,2]
[346226850,1734784234534,-500.0,0.00019875,2]
[346226851,1734784234544,-1165.981859,0.00019875,2]
[346226852,1734784234554,-1165.981859,0.00019875,2]
[346226853,1734784234564,-500.0,0.00019875,2]
[346226854,1734784234574,-500.0,0.00019875,2]
[346226855,1734784234585,-500.0,0.00019875,2]
[346226856,1734784234594,-500.0,0.00019875,2]
[346226857,1734784234604,-893.11,0.00019875,2]
[346226858,1734784234615,-500.0,0.00019875,2]
[346226859,1734784234625,-500.0,0.00019875,2]
[346226860,1734784234635,-500.0,0.00019875,2]
[346226861,1734784234645,-500.0,0.00019875,2]
[346226862,1734784234655,-500.0,0.00019875,2]
[346226863,1734784234665,-258.564544,0.00019875,2]
[346226864,1734784234674,-500.0,0.00019875,2]
[346226865,1734784234683,-500.0,0.00019875,2]
[346226866,1734784234695,-500.0,0.00019875,2]
[346226867,1734784234705,-500.0,0.00019875,2]
[346226868,1734784234714,-947.54,0.00019875,2]
[346226869,1734784234723,-363.01011327,0.00019875,2]
[346226870,1734784234732,-500.0,0.00019875,2]
[346226871,1734784234741,-598.73,0.00019875,2]
[346226872,1734784234750,-501.67287613,0.00019875,2]
[346226873,1734784234760,-738.08,0.00019875,2]
[346226874,1734784234769,-500.0,0.00019875,2]
[346226875,1734784234779,-1079.23,0.00019875,2]
[346226876,1734784234789,-505.32525551,0.00019875,2]
[346226877,1734784234798,-502.88065562,0.00019875,2]
[346226878,1734784234807,-500.0,0.00019875,2]
[346226879,1734784234816,-954.46,0.00019875,2]
[346226880,1734784234825,-500.0,0.00019875,2]
[346226881,1734784234835,-1336.19,0.00019875,2]
[346226882,1734784234844,-500.0,0.00019875,2]
[346226883,1734784234853,-500.0,0.00019875,2]
[346226884,1734784234863,-458.07247408,0.00019875,2]
[346226885,1734784234872,-500.0,0.00019875,2]
[346226886,1734784234882,-610.66,0.00019875,2]
[346226887,1734784234892,-151.0,0.00019875,2]
[346226888,1734784234901,-500.0,0.00019875,2]
[346226889,1734784234911,-500.0,0.00019875,2]
[346226890,1734784234919,-500.0,0.00019875,2]
[346226891,1734784234929,-500.0,0.00019875,2]
[346226892,1734784234938,-500.0,0.00019875,2]
[346226893,1734784234950,-500.0,0.00019875,2]
[346226894,1734784234959,-500.0,0.00019875,2]
[346226895,1734784234969,-500.0,0.00019875,2]
[346226896,1734784234978,-250.759934,0.00019875,2]
[346226897,1734784234987,-500.0,0.00019875,2]
[346226898,1734784234997,-500.0,0.00019875,2]
[346226899,1734784235006,-500.0,0.00019875,2]
[346226900,1734784235015,-500.0,0.00019875,2]
[346226901,1734784235024,-1129.08,0.00019875,2]
[346226902,1734784235033,-500.0,0.00019875,2]
[346226903,1734784235042,-548.49,0.00019875,2]
[346226904,1734784235051,-592.8,0.00019875,2]
[346226905,1734784235061,-500.0,0.00019875,2]
[346226906,1734784235075,-500.0,0.00019875,2]
[346226907,1734784235085,-500.0,0.00019875,2]
[346226908,1734784235095,-500.0,0.00019875,2]
[346226909,1734784235104,-500.0,0.00019875,2]
[346226910,1734784235114,-1346.25,0.00019875,2]
[346226911,1734784235124,-500.0,0.00019875,2]
[346226912,1734784235135,-500.0,0.00019875,2]
[346226913,1734784235144,-203.020786,0.00019875,2]
[346226914,1734784235154,-500.0,0.00019875,2]
[346226915,1734784235164,-500.0,0.00019875,2]
[346226916,1734784235175,-1071.28543351,0.00019875,2]
[346226917,1734784235184,-500.0,0.00019875,2]
[346226918,1734784235195,-500.0,0.00019875,2]
[346226919,1734784235204,-500.0,0.00019875,2]
[346226920,1734784235214,-362.74597107,0.00019875,2]
[346226921,1734784235264,-137.25402893,0.00019875,2]
[346226922,1734784235274,-484.50229398,0.00019875,2]
[346226923,1734784235305,-150.0,0.0001979,2]
[346226924,1734784235314,-15.49770602,0.00019875,2]
[346226925,1734784235323,-500.0,0.00019875,2]
[346226926,1734784235332,-500.0,0.00019875,2]
[346226927,1734784235341,-692.8,0.00019875,2]
[346226928,1734784235350,-874.26,0.00019875,2]
[346226929,1734784235359,-500.0,0.00019875,2]
[346226930,1734784235369,-1354.05,0.00019875,2]
[346226931,1734784235378,-542.99,0.00019875,2]
[346226932,1734784235387,-500.0,0.00019875,2]
[346226933,1734784235396,-500.0,0.00019875,2]
[346226934,1734784235405,-151.0,0.00019875,2]
[346226935,1734784235414,-500.0,0.00019875,2]
[346226936,1734784235423,-151.0,0.00019875,2]
[346226937,1734784235434,-3807.41,0.00019875,2]
[346226938,1734784235446,-500.0,0.00019875,2]
[346226939,1734784235455,-382.29283798,0.00019875,2]
[346226940,1734784235479,-117.70716202,0.00019875,2]
[346226941,1734784235489,-151.0,0.00019875,2]
[346226942,1734784235498,-151.0,0.00019875,2]
[346226943,1734784235508,-438.69285621,0.00019876,3]
[346226946,1734784237509,-150.0,0.00019711,2]
[346226947,1734784237519,-150.0,0.00019713,2]
[346226948,1734784237528,-150.0,0.0001972,2]
[346226949,1734784237537,-90.65357155,0.00019728,2]
[346226950,1734784237549,-59.34642845,0.00019728,2]
[346226951,1734784237559,-150.0,0.0001974,2]
[346226952,1734784237568,-150.0,0.00019741,2]
[346226953,1734784237577,-150.0,0.00019753,2]
[346226954,1734784237586,-150.0,0.00019754,2]
[346226955,1734784237595,-150.0,0.00019756,2]
[346226956,1734784237605,-150.0,0.00019762,2]
[346226957,1734784237614,-150.0,0.00019769,2]
[346226958,1734784237624,-150.0,0.00019775,2]
[346226959,1734784237633,-150.0,0.00019779,2]
[346226960,1734784237642,-150.0,0.0001978,2]
[346226961,1734784237651,-150.0,0.00019786,2]
[346226962,1734784237660,-150.0,0.00019789,2]
[346226963,1734784237669,-150.0,0.0001979,2]
[346226964,1734784237678,-150.0,0.00019792,2]
[346226965,1734784237687,-150.0,0.00019792,2]
[346226966,1734784237699,-150.0,0.00019794,2]
[346226967,1734784237709,-150.0,0.00019796,2]
[346226968,1734784237718,-150.0,0.00019799,2]
[346226969,1734784237727,-150.0,0.000198,2]
[346226970,1734784237736,-150.0,0.00019801,2]
[346226971,1734784237745,-150.0,0.00019803,2]
[346226972,1734784237754,-150.0,0.00019806,2]
[346226973,1734784237763,-150.0,0.00019808,2]
[346226974,1734784237773,-150.0,0.00019809,2]
[346226975,1734784237782,-150.0,0.0001981,2]
[346226977,1734784237791,-150.0,0.00019813,2]
[346226979,1734784237800,-150.0,0.00019819,2]
[346226980,1734784237809,-150.0,0.00019827,2]
[346226981,1734784237820,-150.0,0.00019837,2]
[346226982,1734784237829,-150.0,0.00019842,2]
[346226983,1734784237838,-150.0,0.00019842,2]
[346226985,1734784237848,-150.0,0.00019843,2]
[346226986,1734784237857,-150.0,0.00019856,2]
[346226987,1734784237866,-150.0,0.00019857,2]
[346226988,1734784237875,-150.0,0.0001986,2]
[346226989,1734784237885,-150.0,0.00019863,2]
[346226990,1734784237894,-150.0,0.00019869,2]
[346226991,1734784237903,-150.0,0.00019869,2]
[346226992,1734784237912,-150.0,0.0001987,2]
[346226993,1734784237921,-500.0,0.00019874,2]
[346226994,1734784237930,-151.0,0.00019875,2]
[346226995,1734784237939,-1185.0,0.00019875,2]
[346226996,1734784237951,-41121.65357153,0.00019876,3]
[346226997,1734784238009,-18111.92036878,0.00019876,3]
[346226998,1734784238028,-150.0,0.00019873,2]
[346226999,1734784238037,-1458.0181733,0.00019876,3]
[346227000,1734784238049,-9056.62056156,0.00019876,3]
[346227001,1734784238070,-150.0,0.00019724,2]
[346227002,1734784238080,-3960.58407607,0.00019876,3]
[346227003,1734784238091,-358.33485164,0.00019876,3]
[346227004,1734784238112,-150.0,0.00019725,2]
[346227005,1734784238121,-3640.60361684,0.00019876,3]
[346227009,1734784239439,-150.0,0.00019703,2]
[346227010,1734784239453,-150.0,0.00019709,2]
[346227011,1734784239463,-150.0,0.00019716,2]
[346227012,1734784239473,-150.0,0.00019749,2]
[346227013,1734784239483,-150.0,0.00019767,2]
[346227014,1734784239492,-150.0,0.00019768,2]
[346227015,1734784239501,-150.0,0.00019796,2]
[346227016,1734784239511,-150.0,0.00019857,2]
[346227017,1734784239520,-150.0,0.00019867,2]
[346227018,1734784239529,-500.0,0.00019874,2]
[346227019,1734784239538,-500.0,0.00019875,2]
[346227020,1734784239547,-197237.22356185,0.00019876,3]
[346227021,1734784239559,-8706.80558528,0.00019876,3]
[346227022,1734784239571,-17623.17349961,0.00019876,3]
[346227023,1734784239582,-97118.1202185,0.00019876,3]
[346227024,1734784239657,-374.07477111,0.00019876,3]
[346227025,1734784239770,-4479.42842323,0.00019876,3]
[346227026,1734784239783,-5871.9724,0.00019876,3]
[346227027,1734784239794,-982.9248511,0.00019876,3]
[346227041,1734784242593,-150.0,0.00019718,2]
[346227042,1734784242603,-150.0,0.00019727,2]
[346227043,1734784242613,-150.0,0.00019732,2]
[346227044,1734784242623,-150.0,0.0001975,2]
[346227045,1734784242632,-150.0,0.00019759,2]
[346227046,1734784242642,-150.0,0.0001976,2]
[346227047,1734784242651,-150.0,0.00019774,2]
[346227048,1734784242661,-150.0,0.0001979,2]
[346227049,1734784242670,-150.0,0.00019792,2]
[346227050,1734784242680,-150.0,0.00019797,2]
[346227051,1734784242689,-150.0,0.00019805,2]
[346227052,1734784242701,-150.0,0.00019806,2]
[346227053,1734784242711,-150.0,0.00019816,2]
[346227054,1734784242721,-150.0,0.00019822,2]
[346227055,1734784242731,-150.0,0.00019838,2]
[346227056,1734784242740,-150.0,0.0001984,2]
[346227057,1734784242750,-150.0,0.00019844,2]
[346227058,1734784242759,-150.0,0.00019846,2]
[346227059,1734784242769,-150.0,0.00019851,2]
[346227060,1734784242778,-150.0,0.00019873,2]
[346227061,1734784242788,-96.59913705,0.00019874,2]
[346227062,1734784242865,-150.0,0.00019723,2]
[346227063,1734784242875,-150.0,0.0001974,2]
[346227064,1734784242884,-150.0,0.00019759,2]
[346227065,1734784242894,-150.0,0.00019769,2]
[346227066,1734784242903,-150.0,0.0001978,2]
[346227067,1734784242913,-150.0,0.00019785,2]
[346227068,1734784242923,-150.0,0.00019798,2]
[346227069,1734784242932,-150.0,0.0001986,2]
[346227070,1734784242941,-403.40086295,0.00019874,2]
[346227071,1734784242956,-185.637344,0.00019874,2]
[346227072,1734784242965,-500.0,0.00019875,2]
[346227073,1734784242975,-191.98202329,0.00019875,2]
[346227095,1734784245524,-150.0,0.00019729,2]
[346227096,1734784245534,-150.0,0.00019741,2]
[346227097,1734784245544,-150.0,0.0001976,2]
[346227098,1734784245553,-150.0,0.00019763,2]
[346227100,1734784245562,-150.0,0.00019765,2]
[346227102,1734784245571,-150.0,0.00019809,2]
[346227103,1734784245581,-150.0,0.00019816,2]
[346227104,1734784245590,-95.28609,0.0001982,2]
[346227105,1734784245726,-54.71391,0.0001982,2]
[346227106,1734784245735,-300.0,0.00019825,2]
[346227107,1734784245744,-150.0,0.00019836,2]
[346227108,1734784245754,-150.0,0.00019838,2]
[346227109,1734784245763,-150.0,0.00019851,2]
[346227110,1734784245772,-150.0,0.00019853,2]
[346227111,1734784245781,-150.0,0.00019866,2]
[346227112,1734784245790,-150.0,0.00019867,2]
[346227113,1734784245799,-500.0,0.00019874,2]
[346227114,1734784245808,-547.95,0.00019874,2]
[346227115,1734784245817,-500.0,0.00019874,2]
[346227116,1734784245827,-410.40797671,0.00019875,2]
[346227117,1734784245836,-908.05,0.00019875,2]
[346227118,1734784245845,-142159.974563,0.00019876,3]
[346227119,1734784245864,-19281.09546326,0.00019876,3]
[346227120,1734784245875,-5566.02456083,0.00019876,3]
[346227121,1734784245898,-500.0,0.00019874,2]
[346227122,1734784245907,-39.38849107,0.00019876,3]
[346227123,1734784245918,-313.92318893,0.00019876,3]
[346227124,1734784245941,-500.0,0.00019876,3]
[346227125,1734784245981,-1138.41090184,0.00019876,3]
[346227128,1734784492694,559.86,0.00016736,2]
[346227129,1734784703819,500.0,0.0001795,2]
[346227130,1734784840221,1142.32,0.00017904,2]
[346227131,1734784856605,23900.0,0.00017924,2]
[346227132,1734784867103,61685.01,0.00017924,2]
[346227134,1734784897036,450.0,0.00013,2]
[346227135,1734785026157,527.50591031,0.00016231,7]
[346227150,1734785431639,-454.399991,0.00018018,2]
[346227151,1734785431700,-564.84172103,0.00018018,2]
[346227152,1734785431709,-1019.24171201,0.00018034,2]
[346227153,1734785431719,-1019.24171201,0.00018049,2]
[346227154,1734785431728,-179.47,0.00018107,2]
[346227155,1734785431739,-656.76,0.00018118,2]
[346227156,1734785431748,-183.27,0.00018143,2]
[346227157,1734785431758,-250.0,0.00018148,2]
[346227158,1734785431769,-250.0,0.00018149,2]
[346227159,1734785431778,-1000.0,0.00018272,2]
[346227160,1734785431788,-250.0,0.00018307,2]
[346227161,1734785431797,-776.97,0.00018307,2]
[346227162,1734785431807,-23633.6,0.00018564,2]
[346227163,1734785431816,-513.65,0.00018616,2]
[346227164,1734785431826,-513.65,0.00018621,2]
[346227165,1734785431835,-513.65,0.00018626,2]
[346227166,1734785431844,-513.65,0.00018631,2]
[346227167,1734785431853,-513.65,0.00018636,2]
[346227168,1734785431863,-162.14,0.00018637,2]
[346227169,1734785431872,-513.65,0.00018641,2]
[346227170,1734785431882,-513.65,0.00018646,2]
[346227171,1734785431891,-513.65,0.00018651,2]
[346227172,1734785431900,-513.65,0.00018655,2]
[346227173,1734785431911,-513.65,0.0001866,2]
[346227174,1734785431920,-513.65,0.00018665,2]
[346227175,1734785431929,-513.65,0.0001867,2]
[346227176,1734785431938,-513.65,0.00018675,2]
[346227177,1734785431947,-513.65,0.0001868,2]
[346227178,1734785431956,-418.53440087,0.00018683,2]
[346227179,1734785431965,-513.65,0.00018685,2]
[346227180,1734785431974,-513.65,0.0001869,2]
[346227181,1734785431983,-513.65,0.00018695,2]
[346227182,1734785431993,-513.65,0.000187,2]
[346227183,1734785432002,-513.65,0.00018704,2]
[346227184,1734785432011,-513.65,0.00018709,2]
[346227185,1734785432020,-1000.0,0.00018826,2]
[346227186,1734785432029,-624.66725868,0.00018827,2]
[346227187,1734785432041,-23576.21481213,0.00018827,2]
[346227188,1734785432053,-982.43337259,0.00018827,2]
[346227189,1734785432071,-19964.0145566,0.00018827,2]
[346227190,1734785432080,-150.0,0.00018878,2]
[346227191,1734785432089,-150.0,0.00018878,2]
[346227192,1734785432098,-691.662,0.0001889,2]
[346227193,1734785432107,-559.86,0.00019,2]
[346227194,1734785432117,-374.17,0.00019011,30]
[346227195,1734785432126,-418.53440087,0.00019023,2]
[346227196,1734785432135,-150.0,0.00019078,2]
[346227197,1734785432144,-976.98,0.00019078,2]
[346227198,1734785432154,-150.0,0.00019141,2]
[346227199,1734785432168,-150.0,0.00019141,2]
[346227200,1734785432177,-150.0,0.00019141,2]
[346227201,1734785432186,-150.0,0.00019141,2]
[346227202,1734785432195,-976.98,0.00019141,2]
[346227203,1734785432204,-365.07,0.00019141,2]
[346227204,1734785432214,-150.0,0.00019141,2]
[346227205,1734785432223,-914.64,0.00019178,2]
[346227206,1734785432232,-365.07,0.00019178,2]
[346227207,1734785432242,-976.98,0.00019178,2]
[346227208,1734785432251,-418.53440087,0.00019391,2]
[346227209,1734785432260,-264.9764,0.00019516,2]
[346227210,1734785432269,-800.0,0.00019518,2]
[346227211,1734785432278,-9801.27171513,0.00019576,2]
[346227212,1734785432288,-511.5985,0.0001958,2]
[346227213,1734785432298,-770.39,0.00019604,2]
[346227214,1734785432307,-452.4,0.00019604,2]
[346227215,1734785432317,-9801.27171504,0.0001961,2]
[346227216,1734785432326,-418.53440088,0.00019613,2]
[346227217,1734785432335,-150.0,0.00019614,2]
[346227218,1734785432345,-150.0,0.00019615,2]
[346227219,1734785432354,-150.0,0.00019615,2]
[346227220,1734785432364,-436.91,0.00019616,2]
[346227221,1734785432373,-770.39,0.00019616,2]
[346227222,1734785432382,-770.39,0.00019616,2]
[346227223,1734785432391,-436.91,0.00019616,2]
[346227224,1734785432401,-425.61,0.00019616,2]
[346227225,1734785432412,-514.96,0.00019616,2]
[346227226,1734785432421,-150.0,0.00019617,2]
[346227227,1734785432430,-150.0,0.00019618,2]
[346227228,1734785432439,-150.0,0.00019618,2]
[346227229,1734785432449,-150.0,0.00019623,2]
[346227230,1734785432458,-150.0,0.00019624,2]
[346227231,1734785432468,-150.0,0.00019631,2]
[346227232,1734785432479,-150.0,0.00019643,2]
[346227233,1734785432488,-9801.27171504,0.00019644,2]
[346227234,1734785432498,-150.0,0.00019644,2]
[346227235,1734785432508,-150.0,0.00019648,2]
[346227236,1734785432518,-150.0,0.00019649,2]
[346227237,1734785432527,-150.0,0.00019654,2]
[346227238,1734785432536,-150.0,0.0001966,2]
[346227239,1734785432547,-1500.0,0.00019661,2]
[346227240,1734785432557,-150.0,0.00019662,2]
[346227241,1734785432566,-165.06044974,0.00019665,2]
[346227242,1734785432575,-153.89,0.00019665,2]
[346227243,1734785432584,-508.78300805,0.00019674,2]
[346227244,1734785432593,-500.0,0.00019674,2]
[346227245,1734785432602,-500.0,0.00019674,2]
[346227246,1734785432612,-500.0,0.00019674,2]
[346227247,1734785432621,-500.0,0.00019674,2]
[346227248,1734785432631,-500.0,0.00019674,2]
[346227249,1734785432640,-500.0,0.00019674,2]
[346227250,1734785432650,-500.0,0.00019674,2]
[346227251,1734785432662,-500.0,0.00019674,2]
[346227252,1734785432671,-500.0,0.00019674,2]
[346227253,1734785432681,-500.0,0.00019674,2]
[346227254,1734785432690,-500.0,0.00019674,2]
[346227255,1734785432699,-500.0,0.00019674,2]
[346227256,1734785432708,-502.30841785,0.00019674,2]
[346227257,1734785432718,-500.0,0.00019674,2]
[346227258,1734785432727,-500.0,0.00019674,2]
[346227259,1734785432736,-500.0,0.00019674,2]
[346227260,1734785432745,-500.0,0.00019674,2]
[346227261,1734785432754,-500.0,0.00019674,2]
[346227262,1734785432763,-500.0,0.00019674,2]
[346227263,1734785432774,-500.0,0.00019674,2]
[346227264,1734785432783,-500.0,0.00019674,2]
[346227265,1734785432793,-500.0,0.00019674,2]
[346227266,1734785433002,-500.0,0.00019674,2]
[346227267,1734785433013,-500.0,0.00019674,2]
[346227268,1734785433023,-500.0,0.00019674,2]
[346227269,1734785433033,-500.0,0.00019674,2]
[346227270,1734785433043,-500.0,0.00019674,2]
[346227271,1734785433054,-500.0,0.00019674,2]
[346227272,1734785433064,-500.0,0.00019674,2]
[346227273,1734785433073,-500.0,0.00019674,2]
[346227274,1734785433083,-177.902455,0.00019674,2]
[346227275,1734785433092,-500.0,0.00019674,2]
[346227276,1734785433101,-500.0,0.00019674,2]
[346227277,1734785433111,-500.0,0.00019674,2]
[346227278,1734785433120,-500.0,0.00019674,2]
[346227279,1734785433129,-500.0,0.00019674,2]
[346227280,1734785433138,-308.45170374,0.00019674,2]
[346227281,1734785433147,-814.0,0.00019674,2]
[346227282,1734785433160,-500.0,0.00019674,2]
[346227283,1734785433171,-500.0,0.00019674,2]
[346227284,1734785433182,-502.05344853,0.00019674,2]
[346227285,1734785433192,-503.58819522,0.00019674,2]
[346227286,1734785433203,-500.0,0.00019674,2]
[346227287,1734785433213,-545.95,0.00019674,2]
[346227288,1734785433224,-500.0,0.00019674,2]
[346227289,1734785433233,-500.0,0.00019674,2]
[346227290,1734785433243,-509.5932412,0.00019674,2]
[346227291,1734785433253,-500.0,0.00019674,2]
[346227292,1734785433263,-500.0,0.00019674,2]
[346227293,1734785433273,-500.0,0.00019674,2]
[346227294,1734785433283,-500.0,0.00019674,2]
[346227295,1734785433293,-500.0,0.00019674,2]
[346227296,1734785433303,-500.0,0.00019674,2]
[346227297,1734785433312,-166.8884,0.00019674,2]
[346227298,1734785433322,-500.0,0.00019674,2]
[346227299,1734785433332,-500.0,0.00019674,2]
[346227300,1734785433347,-500.0,0.00019674,2]
[346227301,1734785433357,-500.0,0.00019674,2]
[346227302,1734785433367,-500.0,0.00019674,2]
[346227303,1734785433377,-675.14,0.00019674,2]
[346227304,1734785433386,-500.0,0.00019674,2]
[346227305,1734785433396,-500.0,0.00019674,2]
[346227306,1734785433409,-500.0,0.00019674,2]
[346227307,1734785433419,-500.0,0.00019674,2]
[346227308,1734785433429,-500.0,0.00019674,2]
[346227309,1734785433439,-500.0,0.00019674,2]
[346227310,1734785433449,-500.0,0.00019674,2]
[346227311,1734785433462,-500.0,0.00019674,2]
[346227312,1734785433471,-500.0,0.00019674,2]
[346227313,1734785433481,-739.2,0.00019674,2]
[346227314,1734785433491,-500.0,0.00019674,2]
[346227315,1734785433502,-200.0,0.00019674,2]
[346227316,1734785433512,-500.0,0.00019674,2]
[346227317,1734785433523,-500.0,0.00019674,2]
[346227318,1734785433533,-500.0,0.00019674,2]
[346227319,1734785433544,-500.0,0.00019674,2]
[346227320,1734785433554,-500.0,0.00019674,2]
[346227321,1734785433563,-500.0,0.00019674,2]
[346227322,1734785433573,-537.64,0.00019674,2]